bitfinex-derivatives/quotes_ETHF0:USTF0_20230830
["timestamp","ask_amount","ask_price","bid_price","bid_amount"]
[1693402150822,3.83708176,1721.6,1721.5,5.234]
[1693402151823,9.07108176,1721.6,1721.3,8.45051358]
[1693402152126,3.81934876,1721.5,1721.3,8.45051358]
[1693402154624,1.43358176,1721.4,1721.3,8.45051358]
[1693402155229,3.81934876,1721.5,1721.3,8.45051358]
[1693402155932,5.25293052,1721.5,1721.3,8.45051358]
[1693402156428,4.67203052,1721.5,1721.3,8.45051358]
[1693402157128,7.13551814,1721.5,1721.3,8.45051358]
[1693402157826,6.55461814,1721.5,1721.3,8.45051358]
[1693402158330,5.97371814,1721.5,1721.3,8.45051358]
[1693402158731,4.47796938,1721.5,1721.3,8.45051358]
[1693402159032,4.81191814,1721.5,1721.3,8.45051358]
[1693402159331,4.81191814,1721.5,1721.3,9.03141357]
[1693402159524,4.23101814,1721.5,1721.3,8.45051358]
[1693402161936,2.4563,1721.4,1721.3,8.45051358]
[1693402162135,2.4563,1721.4,1721.3,9.61231357]
[1693402162437,5.0214,1721.4,1721.3,9.61231357]
[1693402165635,8.06578762,1721.4,1721.3,8.45051358]
[1693402169047,8.06578762,1721.4,1721.3,5.24271358]
[1693402171745,11.27552223,1721.4,1721.3,5.24271358]
[1693402171946,11.27546336,1721.4,1721.3,0.00871358]
[1693402174245,8.2292,1721.4,1721.3,0.00871358]
[1693402174448,11.27486862,1721.4,1721.3,0.00871358]
[1693402174942,17.26796012,1721.4,1721.3,0.00871358]
[1693402182748,17.72207021,1721.4,1721.3,0.00871358]
[1693402183344,8.52002609,1721.4,1721.3,1.17051357]
[1693402183544,3.49862609,1721.4,1721.3,1.17051357]
[1693402184840,3.49862609,1721.4,1721.3,0.00871358]
[1693402185248,6.13312609,1721.4,1721.3,0.00871358]
[1693402195160,6.13312609,1721.4,1721.3,1.17051357]
[1693402196750,3.08861009,1721.4,1721.3,1.17051357]
[1693402197156,6.13503726,1721.4,1721.3,1.17051357]
[1693402197459,3.08861009,1721.4,1721.3,1.17051357]
[1693402197662,3.04656996,1721.4,1721.3,6.40451357]
[1693402197962,3.04656996,1721.4,1721.3,9.61231357]
[1693402198153,3.04656996,1721.5,1721.3,9.61231357]
[1693402198360,3.04656996,1721.5,1721.4,2.26993648]
[1693402200156,6.85121022,1721.5,1721.4,2.26993648]
[1693402200355,1.43358176,1721.5,1721.4,2.26993648]
[1693402200561,3.04647598,1721.5,1721.4,2.26993648]
[1693402201155,3.04647598,1721.5,1721.4,7.50393648]
[1693402202365,3.04647598,1721.5,1721.4,15.22275961]
[1693402202570,3.04582587,1721.8,1721.5,6.1054493]
[1693402202764,1.96573874,1721.9,1721.7,9.95099861]
[1693402202964,7.22892404,1722.1,1721.8,6.39579999]
[1693402203264,7.22892404,1722.1,1722.0,5.234]
[1693402203472,3.42416392,1722.1,1722.0,5.234]
[1693402203664,3.42416392,1722.1,1722.0,6.39579999]
[1693402205268,3.42416392,1722.1,1721.6,3.0258514]
[1693402205269,19.59484588,1722.1,1721.6,1.50919861]
[1693402205471,5.234,1721.8,1721.5,10.82244791]
[1693402205671,5.234,1721.6,1721.5,4.0792493]
[1693402206069,5.234,1721.6,1721.5,2.03324929]
[1693402206265,7.7973,1721.6,1721.5,2.03324929]
[1693402206466,9.23088176,1721.6,1721.5,2.03324929]
[1693402206759,9.23088176,1721.6,1721.5,0.8714493]
[1693402207066,12.43868176,1721.6,1721.5,0.8714493]
[1693402210072,9.87538176,1721.6,1721.5,0.8714493]
[1693402212169,10.33435242,1721.6,1721.5,0.8714493]
[1693402212369,8.90077066,1721.6,1721.5,2.03324929]
[1693402212577,11.52607066,1721.6,1721.5,2.03324929]
[1693402213079,3.08427066,1721.6,1721.5,2.03324929]
[1693402214672,4.51785242,1721.6,1721.5,2.03324929]
[1693402216276,4.51785242,1721.6,1721.5,1.16179999]
[1693402216470,9.75185242,1721.6,1721.3,9.95971219]
[1693402216866,10.66670118,1721.6,1721.4,1.16179999]
[1693402219376,10.66670118,1721.6,1721.3,10.72045006]
[1693402219578,10.66670118,1721.6,1721.3,8.45051358]
[1693402220179,10.66670118,1721.6,1721.4,1.16179999]
[1693402220778,10.66670118,1721.6,1721.3,8.45051358]
[1693402221978,10.66670118,1721.6,1721.4,1.16179999]
[1693402223180,10.66670118,1721.6,1721.3,8.45051358]
[1693402224484,10.66670118,1721.6,1721.4,1.16179999]
[1693402228986,10.66670118,1721.6,1721.3,12.22964867]
[1693402230182,13.87450118,1721.6,1721.3,10.72045006]
[1693402230586,13.87450118,1721.6,1721.3,8.45051358]
[1693402231882,5.234,1721.5,1721.3,3.21651358]
[1693402232179,5.234,1721.5,1721.3,4.37831357]
[1693402232582,6.66758176,1721.5,1721.3,4.37831357]
[1693402234480,6.66758176,1721.5,1721.3,1.17051357]
[1693402235683,6.66758176,1721.5,1721.3,5.88751218]
[1693402235880,5.234,1721.5,1721.3,5.88751218]
[1693402236287,5.234,1721.5,1721.4,2.26993648]
[1693402236892,6.66758176,1721.5,1721.3,5.88751218]
[1693402237090,6.66758176,1721.5,1721.3,8.15744866]
[1693402237483,5.234,1721.5,1721.3,8.15744866]
[1693402241696,5.234,1721.5,1721.3,10.42124658]
[1693402241997,11.64161942,1721.6,1721.3,15.65524658]
[1693402242290,14.68473313,1721.6,1721.3,15.65524658]
[1693402243604,1.43358176,1721.5,1721.3,15.65524658]
[1693402243895,1.43358176,1721.5,1721.3,13.3853101]
[1693402247894,6.14884876,1721.4,1721.3,3.78171011]
[1693402248087,6.14884876,1721.4,1721.3,0.00871358]
[1693402249597,9.19196247,1721.4,1721.3,0.00871358]
[1693402250190,6.14884876,1721.4,1721.3,0.00871358]
[1693402250599,9.19196247,1721.4,1721.3,1.51791219]
[1693402254607,9.19196247,1721.4,1721.3,0.00871358]
[1693402255402,9.66027532,1721.4,1721.3,0.00871358]
[1693402255809,9.66027532,1721.4,1721.3,1.51791219]
[1693402258105,9.66027532,1721.4,1721.3,0.00871358]
[1693402260104,9.66027532,1721.4,1721.3,1.17051357]
[1693402260302,8.74542656,1721.4,1721.3,2.67971218]
[1693402261206,10.17900832,1721.4,1721.3,1.51791219]
[1693402261407,10.17900832,1721.4,1721.3,0.00871358]
[1693402263307,8.74542656,1721.4,1721.3,2.67971218]
[1693402263612,0.46831285,1721.4,1721.3,5.58518415]
[1693402263811,3.04311371,1721.5,1721.3,2.67971218]
[1693402264110,4.47669547,1721.5,1721.3,2.67971218]
[1693402264511,3.04311371,1721.4,1721.3,2.67971218]
[1693402264905,4.47669547,1721.5,1721.3,2.67971218]
[1693402265110,3.04311371,1721.4,1721.3,2.67971218]
[1693402265708,8.27711371,1721.4,1721.3,2.67971218]
[1693402265905,8.27711371,1721.4,1721.3,1.51791219]
[1693402266213,9.19196247,1721.4,1721.3,1.51791219]
[1693402266816,9.19196247,1721.4,1721.3,0.00871358]
[1693402267908,9.19611403,1721.4,1721.3,1.52290405]
[1693402269420,9.19611403,1721.4,1721.3,2.68470404]
[1693402271721,8.28126527,1721.4,1721.3,2.68470404]
[1693402272023,3.04726527,1721.4,1721.3,9.61231357]
[1693402272322,3.80908159,1721.5,1721.3,20.76872186]
[1693402272621,3.80908159,1721.5,1721.4,2.26993648]
[1693402272622,3.22818159,1721.5,1721.4,2.26993648]
[1693402272821,3.08427066,1721.6,1721.4,2.26993648]
[1693402273123,3.08427066,1721.6,1721.5,1.16179999]
[1693402273517,3.08427066,1721.6,1721.5,4.36959999]
[1693402273718,3.08427066,1721.6,1721.5,5.88255938]
[1693402275924,0.45897066,1721.6,1721.5,5.88255938]
[1693402276126,7.7982,1721.7,1721.5,5.88255938]
[1693402280617,8.26155652,1721.7,1721.5,5.88255938]
[1693402280820,8.26155652,1721.7,1721.6,2.26993648]
[1693402281027,3.02755652,1721.7,1721.6,2.26993648]
[1693402281529,0.46335652,1721.7,1721.6,2.26993648]
[1693402281831,7.8681,1721.9,1721.6,6.6877497]
[1693402282026,2.6341,1721.9,1721.7,4.36959999]
[1693402282329,2.6341,1721.9,1721.8,2.26993648]
[1693402284222,9.7765105,1721.9,1721.7,3.2078]
[1693402284529,5.56893778,1721.8,1721.7,3.2078]
[1693402284722,6.14884876,1721.8,1721.7,3.2078]
[1693402284924,8.56264876,1721.8,1721.7,3.2078]
[1693402289537,8.56264876,1721.8,1721.5,8.91690762]
[1693402289732,3.82918176,1721.7,1721.5,8.91690762]
[1693402290031,3.82918176,1721.7,1721.5,10.07870761]
[1693402292035,9.06318176,1721.7,1721.5,4.84470761]
[1693402293334,9.06318176,1721.7,1721.5,3.68290762]
[1693402294029,0.91484876,1721.6,1721.5,3.68290762]
[1693402294234,0.91484876,1721.6,1721.5,4.84470761]
[1693402294430,4.12264876,1721.6,1721.3,6.99891205]
[1693402294640,5.234,1721.4,1721.3,0.00871358]
[1693402294837,6.14884876,1721.4,1721.3,0.00871358]
[1693402295135,8.55704876,1721.4,1721.3,0.00871358]
[1693402302251,9.02476266,1721.4,1721.3,0.00871358]
[1693402307046,9.02476266,1721.4,1721.2,1.51227354]
[1693402307047,1.43358176,1721.3,1721.1,1.51227354]
[1693402307247,5.234,1721.1,1720.9,1.51227354]
[1693402307554,8.4418,1721.0,1720.8,1.51227354]
[1693402307746,6.14884876,1720.9,1720.8,1.51227354]
[1693402308147,8.57014876,1720.9,1720.8,1.51227354]
[1693402308545,8.57014876,1720.9,1720.7,3.78068386]
[1693402308753,9.09048176,1720.8,1720.7,6.68693666]
[1693402309145,6.78502836,1720.8,1720.7,8.60639959]
[1693402309354,8.21861012,1720.8,1720.7,8.60639959]
[1693402309851,8.21861012,1720.8,1720.7,5.17466312]
[1693402312449,8.21861012,1720.8,1720.6,6.09995733]
[1693402312651,8.21861012,1720.8,1720.7,4.06802435]
[1693402313053,8.21861012,1720.8,1720.7,5.17525672]
[1693402313348,8.21861012,1720.8,1720.7,2.26903236]
[1693402317156,8.21861012,1720.8,1720.7,3.43083235]
[1693402318254,8.21861012,1720.8,1720.7,6.33704886]
[1693402318447,5.33192046,1720.8,1720.7,8.60698534]
[1693402318653,6.76550222,1720.8,1720.7,8.60698534]
[1693402320357,0.00871713,1720.9,1720.7,9.54484886]
[1693402320561,0.00871713,1720.9,1720.8,6.68610309]
[1693402320758,0.00871713,1720.9,1720.8,4.41707073]
[1693402321057,0.00871713,1720.9,1720.8,6.68700721]
[1693402322262,0.00871713,1720.9,1720.8,3.7807907]
[1693402322464,1.44229889,1720.9,1720.8,1.51085422]
[1693402322761,3.93579889,1720.9,1720.8,1.51085422]
[1693402324060,9.16979889,1720.9,1720.8,1.51085422]
[1693402328661,0.00871713,1720.9,1720.8,5.57887313]
[1693402329568,0.00871713,1720.9,1720.8,7.84790549]
[1693402329866,0.00871713,1720.9,1720.8,6.33705127]
[1693402335865,0.00871713,1720.9,1720.8,4.06801891]
[1693402336562,0.00871713,1720.9,1720.8,7.09339539]
[1693402336764,6.67629889,1720.9,1720.8,7.09339539]
[1693402336968,9.16959889,1720.9,1720.8,5.17647809]
[1693402337165,11.76619889,1720.9,1720.8,5.17647809]
[1693402339469,11.76619889,1720.9,1720.8,16.33683441]
[1693402340566,11.76619889,1720.9,1720.8,5.17647809]
[1693402346769,11.76619889,1720.9,1720.8,2.90621892]
[1693402349073,11.76619889,1720.9,1720.8,5.18598786]
[1693402349775,11.76619889,1720.9,1720.8,2.90621892]
[1693402349975,11.76619889,1720.9,1720.8,5.18619085]
[1693402350870,11.76619889,1720.9,1720.8,2.90621892]
[1693402351074,11.76619889,1720.9,1720.8,5.9315954]
[1693402351876,11.76619889,1720.9,1720.8,3.02537648]
[1693402352076,11.76619889,1720.9,1720.8,5.9315954]
[1693402352779,11.76619889,1720.9,1720.8,6.68793952]
[1693402355083,10.33261713,1720.9,1720.8,7.84973951]
[1693402355281,0.00871713,1720.9,1720.8,7.84973951]
[1693402355580,0.00871713,1720.9,1720.8,4.06801891]
[1693402357782,0.00871713,1720.9,1720.8,7.87620225]
[1693402358885,6.67629889,1720.9,1720.8,6.71440226]
[1693402359085,9.15359889,1720.9,1720.8,6.71440226]
[1693402359379,11.66109889,1720.9,1720.8,6.71440226]
[1693402360682,11.66109889,1720.9,1720.8,2.90621892]
[1693402361083,11.66109889,1720.9,1720.8,5.95288554]
[1693402361676,14.70029955,1720.9,1720.8,5.95288554]
[1693402361885,15.46009972,1720.9,1720.8,5.19155892]
[1693402362180,15.46009972,1720.9,1720.8,3.80908503]
[1693402362387,15.46009972,1720.9,1720.8,5.19155892]
[1693402362585,15.46009972,1720.9,1720.8,2.28534]
[1693402363283,15.46009972,1720.9,1720.8,1.52383542]
[1693402364378,15.46009972,1720.9,1720.8,2.28534]
[1693402364577,14.02651796,1720.9,1720.8,3.44713999]
[1693402364782,14.02651796,1720.9,1720.8,5.59156135]
[1693402365181,15.46009972,1720.9,1720.8,5.59156135]
[1693402365480,14.02651796,1720.9,1720.8,5.59156135]
[1693402365680,14.02651796,1720.9,1720.8,7.87690135]
[1693402366186,15.46009972,1720.9,1720.8,7.87690135]
[1693402366389,15.46009972,1720.9,1720.8,6.71510136]
[1693402366584,15.46009972,1720.9,1720.8,7.87690135]
[1693402366783,3.80771796,1720.9,1720.8,7.87690135]
[1693402366991,3.06036407,1720.9,1720.8,10.32248553]
[1693402369488,0.00871713,1720.9,1720.8,10.32248553]
[1693402373094,0.00871713,1720.9,1720.8,21.48206407]
[1693402373800,0.00871713,1720.9,1720.8,18.43539745]
[1693402373995,3.55e-06,1720.9,1720.8,27.47758079]
[1693402374195,3.05164694,1721.1,1720.9,2.67248666]
[1693402374401,3.05164694,1721.2,1721.0,23.8093938]
[1693402374594,3.05164694,1721.2,1721.1,19.38194921]
[1693402375396,3.05164694,1721.3,1721.1,24.61594921]
[1693402375602,3.05164694,1721.3,1721.2,26.71561272]
[1693402375908,3.05164694,1721.3,1721.2,34.2892042]
[1693402376094,3.51936084,1721.4,1721.2,34.2892042]
[1693402376298,2.93836084,1721.4,1721.3,19.38194921]
[1693402376795,2.93836084,1721.4,1721.3,32.3186622]
[1693402377700,3.79900083,1721.6,1721.3,32.3186622]
[1693402377903,3.79900083,1721.6,1721.5,1.52262344]
[1693402378204,3.79900083,1721.6,1721.5,6.69877884]
[1693402378502,6.22520083,1721.7,1721.5,23.85034994]
[1693402378697,6.22520083,1721.7,1721.6,8.7981578]
[1693402379604,6.22520083,1721.7,1721.6,11.08209296]
[1693402379995,6.16160083,1721.7,1721.6,11.08209296]
[1693402380199,6.16160083,1721.7,1721.6,8.7981578]
[1693402380900,9.03018176,1721.7,1721.6,2.68413888]
[1693402381099,9.8668732,1721.7,1721.6,2.68413888]
[1693402381701,8.43329144,1721.7,1721.6,2.68413888]
[1693402381904,7.5966,1721.7,1721.6,2.68413888]
[1693402382204,9.49545206,1721.7,1721.6,2.68413888]
[1693402382601,8.89858267,1721.7,1721.6,2.68413888]
[1693402382795,8.0618703,1721.7,1721.6,2.68413888]
[1693402383203,11.87491687,1721.7,1721.6,11.08105238]
[1693402383502,11.87491687,1721.7,1721.6,8.79711722]
[1693402384206,8.0618703,1721.7,1721.6,5.89193888]
[1693402384901,11.87487081,1721.7,1721.6,20.71441557]
[1693402385504,6.64087081,1721.7,1721.6,25.94841557]
[1693402389106,6.64087081,1721.7,1721.6,23.04327232]
[1693402389312,2.8278703,1721.7,1721.6,25.94628493]
[1693402389607,6.64081085,1721.7,1721.6,25.94628493]
[1693402389805,6.64081085,1721.7,1721.6,20.71228493]
[1693402391609,3.81294055,1721.7,1721.6,31.27069064]
[1693402392313,3.23204055,1721.7,1721.6,31.27069064]
[1693402392512,0.00871256,1721.8,1721.6,31.27069064]
[1693402392811,5.33811677,1722.0,1721.6,31.27069064]
[1693402392812,5.33811677,1722.0,1721.7,18.65967365]
[1693402393008,5.33811677,1722.0,1721.9,3.2078]
[1693402393214,4.75731677,1722.0,1721.9,16.63347365]
[1693402393413,2.6028,1722.1,1721.9,16.63347365]
[1693402393712,2.6028,1722.1,1722.0,1.16179999]
[1693402394413,2.0221,1722.1,1722.0,1.16179999]
[1693402395015,2.0221,1722.1,1722.0,5.58701735]
[1693402395212,5.234,1722.2,1722.0,13.26759366]
[1693402395517,4.04429417,1722.4,1722.1,2.26993648]
[1693402395518,11.89249417,1722.4,1722.1,2.26993648]
[1693402395813,12.36521171,1722.4,1722.2,1.16179999]
[1693402396207,13.79879347,1722.4,1722.2,1.16179999]
[1693402396713,13.80750301,1722.4,1722.2,1.16179999]
[1693402396912,12.37392125,1722.4,1722.2,1.16179999]
[1693402397110,13.80750301,1722.4,1722.2,1.16179999]
[1693402397612,12.37392125,1722.4,1722.2,1.16179999]
[1693402397809,14.94192125,1722.4,1722.2,1.16179999]
[1693402399114,16.37550301,1722.4,1722.2,1.16179999]
[1693402399409,0.83649417,1722.3,1722.2,1.16179999]
[1693402400010,0.83649417,1722.3,1722.1,2.26993648]
[1693402400215,6.66758176,1722.2,1722.0,1.51981036]
[1693402400408,6.66758176,1722.2,1722.0,4.42426522]
[1693402400820,6.66758176,1722.2,1722.1,1.16179999]
[1693402401115,6.66758176,1722.2,1722.0,1.51981036]
[1693402401413,6.66758176,1722.2,1722.1,1.16179999]
[1693402401610,5.234,1722.2,1722.1,1.16179999]
[1693402401911,1.75134293,1722.3,1722.1,8.66573647]
[1693402402208,0.83649417,1722.3,1722.2,5.234]
[1693402402405,5.66362708,1722.4,1722.2,5.234]
[1693402402612,5.66362708,1722.4,1722.3,1.16179999]
[1693402403115,7.09720884,1722.4,1722.3,1.16179999]
[1693402403313,7.09720884,1722.4,1722.2,5.234]
[1693402403515,7.09720884,1722.4,1722.2,6.39579999]
[1693402405214,12.4339572,1722.4,1722.2,6.39579999]
[1693402405515,13.27045137,1722.4,1722.2,6.39579999]
[1693402406309,7.93370301,1722.4,1722.2,6.39579999]
[1693402407814,12.50811207,1722.4,1722.2,6.39579999]
[1693402409715,11.07453031,1722.4,1722.3,2.26993648]
[1693402409916,11.07453031,1722.4,1722.3,5.47773648]
[1693402411215,17.74211207,1722.4,1722.1,9.96161036]
[1693402411422,0.83649417,1722.3,1722.1,9.96161036]
[1693402411622,0.83649417,1722.3,1722.1,11.12341035]
[1693402411822,2.4689,1722.2,1722.1,11.12341035]
[1693402412019,3.90248176,1722.2,1722.1,9.96161036]
[1693402412817,3.90248176,1722.2,1722.1,11.12341035]
[1693402414116,3.90248176,1722.2,1722.1,9.96161036]
[1693402414314,3.90248176,1722.2,1722.1,8.4418]
[1693402414622,12.34428176,1722.2,1722.0,1.51981036]
[1693402414922,0.91484876,1722.1,1721.9,6.75381036]
[1693402415121,5.24594816,1722.0,1721.9,6.75381036]
[1693402415330,5.24594816,1722.0,1721.9,9.65846989]
[1693402415520,6.66758176,1722.0,1721.9,1.51981036]
[1693402415821,6.66758176,1722.0,1721.8,4.72761036]
[1693402416028,6.2127513,1721.9,1721.8,1.51981036]
[1693402416322,6.2127513,1721.9,1721.8,4.42463029]
[1693402417519,2.4002,1721.9,1721.8,1.51981036]
[1693402417723,7.6342,1721.9,1721.7,1.51981036]
[1693402417929,10.79023052,1721.8,1721.6,1.51981036]
[1693402418130,5.234,1721.7,1721.6,1.51981036]
[1693402418421,6.07073387,1721.7,1721.5,1.52852292]
[1693402418622,11.39567926,1721.6,1721.5,1.52852292]
[1693402418830,7.58243052,1721.6,1721.5,1.52852292]
[1693402419022,10.79023052,1721.6,1721.3,2.27971555]
[1693402419221,5.234,1721.4,1721.3,2.27971555]
[1693402419421,7.58243052,1721.4,1721.3,13.43688973]
[1693402419624,7.58243052,1721.4,1721.3,16.34240929]
[1693402419826,11.39592494,1721.4,1721.3,16.34240929]
[1693402421224,10.79023052,1721.4,1721.1,2.27971555]
[1693402421421,12.2558181,1721.2,1721.0,5.1856341]
[1693402421626,7.58243052,1721.1,1721.0,2.27971555]
[1693402421821,11.39644862,1721.1,1721.0,2.27971555]
[1693402422220,10.63376811,1721.1,1721.0,13.4390715]
[1693402422426,11.39644862,1721.1,1721.0,2.906083]
[1693402422624,11.39644862,1721.1,1720.9,0.00871536]
[1693402422625,12.81643052,1721.1,1720.9,0.00871536]
[1693402422825,12.25643003,1721.0,1720.9,0.00871536]
[1693402423129,2.34843052,1720.9,1720.7,3.03962073]
[1693402423328,12.25668228,1720.8,1720.6,3.03962073]
[1693402423523,8.28595483,1720.7,1720.6,3.03962073]
[1693402423833,10.63438535,1720.7,1720.6,3.03962073]
[1693402426430,11.3973128,1720.7,1720.5,3.04833837]
[1693402426639,11.49394831,1720.6,1720.5,0.00871764]
[1693402427229,11.49397571,1720.6,1720.5,0.00871764]
[1693402427625,8.4418,1720.6,1720.5,0.00871764]
[1693402427825,11.49398745,1720.6,1720.5,3.04833837]
[1693402429928,11.49398745,1720.6,1720.5,0.00871764]
[1693402430534,8.4418,1720.6,1720.5,0.00871764]
[1693402430734,3.05216292,1720.6,1720.5,4.21013836]
[1693402431638,3.05216292,1720.6,1720.5,3.04833837]
[1693402433538,12.25668228,1720.6,1720.5,0.00871764]
[1693402433947,10.3584738,1720.6,1720.5,0.00871764]
[1693402434141,8.4418,1720.6,1720.5,0.00871764]
[1693402437139,12.25724967,1720.6,1720.5,0.00871764]
[1693402437938,14.18999005,1720.6,1720.5,0.00871764]
[1693402438342,10.37454038,1720.6,1720.3,3.03962073]
[1693402438537,11.4942609,1720.4,1720.3,3.03962073]
[1693402438742,13.84269142,1720.4,1720.3,3.03962073]
[1693402439643,13.84269142,1720.4,1720.3,4.20142072]
[1693402440142,12.40910966,1720.4,1720.3,4.20142072]
[1693402440343,3.82429529,1720.5,1720.3,1.16179999]
[1693402440545,2.28916257,1720.4,1720.3,4.96132591]
[1693402441448,2.28916257,1720.4,1720.3,1.16179999]
[1693402441648,3.72274433,1720.4,1720.2,11.3034624]
[1693402441850,3.72274433,1720.4,1720.3,3.05020089]
[1693402442544,1.43358176,1720.4,1720.3,5.95718989]
[1693402442750,9.87538176,1720.4,1720.3,2.906989]
[1693402442950,13.69095789,1720.4,1720.2,5.95718989]
[1693402443252,8.45695789,1720.4,1720.3,2.906989]
[1693402443450,13.69095789,1720.4,1720.3,2.906989]
[1693402443645,14.60580665,1720.4,1720.3,2.906989]
[1693402445757,12.25737613,1720.4,1720.3,4.06878899]
[1693402446050,13.69095789,1720.4,1720.3,2.906989]
[1693402447853,12.25737613,1720.4,1720.3,4.06878899]
[1693402448051,8.28648102,1720.4,1720.3,7.11898988]
[1693402449051,3.05248102,1720.4,1720.3,7.11898988]
[1693402449255,3.05248102,1720.4,1720.3,12.35298988]
[1693402449651,2.2892172,1720.4,1720.3,13.10231491]
[1693402453253,2.2892172,1720.4,1720.3,9.30278899]
[1693402453460,3.72279896,1720.4,1720.3,5.95614365]
[1693402453656,9.87538176,1720.4,1720.3,2.906989]
[1693402453858,13.69095789,1720.4,1720.3,2.906989]
[1693402455364,13.69095789,1720.4,1720.2,5.96486281]
[1693402455562,13.69095789,1720.4,1720.3,2.906989]
[1693402455762,14.60580665,1720.4,1720.3,2.906989]
[1693402459565,15.07458589,1720.4,1720.3,2.906989]
[1693402460361,13.20678143,1720.4,1720.2,0.00871916]
[1693402460657,5.234,1720.3,1720.0,3.04915465]
[1693402460855,11.49479222,1720.1,1720.0,3.04915465]
[1693402461260,12.92837398,1720.1,1720.0,3.04915465]
[1693402461559,13.69162204,1720.1,1719.9,8.05865465]
[1693402461753,3.96795831,1720.0,1719.9,8.05865465]
[1693402461954,14.43595831,1720.0,1719.9,8.05865465]
[1693402462360,14.43595831,1720.0,1719.9,8.06448886]
[1693402465265,14.43595831,1720.0,1719.9,9.22628885]
[1693402468465,14.43595831,1720.0,1719.9,8.06448886]
[1693402469974,14.43595831,1720.0,1719.9,9.22628885]
[1693402470166,14.43595831,1720.0,1719.9,8.06448886]
[1693402470870,13.52110955,1720.0,1719.9,9.22628885]
[1693402472073,14.95469131,1720.0,1719.9,8.06448886]
[1693402472267,14.95469131,1720.0,1719.9,9.22628885]
[1693402473063,11.90158176,1720.0,1719.9,9.22988586]
[1693402473266,10.468,1720.0,1719.9,9.22988586]
[1693402473667,12.75772321,1720.0,1719.9,9.22988586]
[1693402473872,12.75772774,1720.0,1719.9,9.97666012]
[1693402474374,7.52372774,1720.0,1719.9,9.97666012]
[1693402475974,2.28973344,1720.0,1719.9,9.97666012]
[1693402476679,7.99760897,1720.1,1719.9,9.97666012]
[1693402476974,7.99760897,1720.1,1720.0,3.2078]
[1693402477175,7.99760897,1720.1,1720.0,5.47773648]
[1693402477373,7.99760897,1720.1,1720.0,9.2772624]
[1693402477768,7.52373344,1720.1,1720.0,9.2772624]
[1693402480271,7.52373344,1720.1,1720.0,12.18466378]
[1693402482079,2.28973344,1720.1,1720.0,12.18466378]
[1693402482273,2.32146348,1720.2,1720.0,21.12010193]
[1693402482478,3.05310955,1720.3,1720.1,13.98993479]
[1693402482672,0.00871916,1720.5,1720.2,17.4322596]
[1693402482879,1.40922198,1720.6,1720.4,12.25481397]
[1693402483175,0.03962198,1720.6,1720.5,21.07237911]
[1693402483377,0.03962198,1720.6,1720.5,18.02213326]
[1693402483772,0.03962198,1720.6,1720.5,21.0721629]
[1693402484378,0.03962198,1720.6,1720.5,13.46096297]
[1693402484582,5.27362198,1720.6,1720.5,5.95702649]
[1693402484984,5.27362198,1720.6,1720.5,5.19486895]
[1693402485480,9.08894897,1720.6,1720.5,5.19486895]
[1693402485884,5.27362198,1720.6,1720.5,2.28795315]
[1693402486078,5.27362198,1720.6,1720.5,2.9069158]
[1693402486278,5.27362198,1720.6,1720.5,5.19489639]
[1693402487384,5.27362198,1720.6,1720.5,2.9069158]
[1693402489376,5.27362198,1720.6,1720.5,5.1946034]
[1693402490680,9.08894897,1720.6,1720.5,5.1946034]
[1693402493989,9.04932699,1720.6,1720.5,5.1946034]
[1693402494488,9.04932699,1720.6,1720.5,2.2876876]
[1693402495392,9.04932699,1720.6,1720.5,5.1946034]
[1693402495983,9.04932699,1720.6,1720.5,6.35640339]
[1693402496286,5.234,1720.6,1720.5,6.35640339]
[1693402496489,5.234,1720.6,1720.5,4.06871579]
[1693402498086,3.82404512,1720.7,1720.5,12.35282648]
[1693402498288,0.00871813,1720.7,1720.6,10.67174726]
[1693402498789,0.00871813,1720.7,1720.6,8.38465228]
[1693402500089,0.00871813,1720.7,1720.6,11.43476297]
[1693402500387,0.00871813,1720.7,1720.6,15.90566177]
[1693402500587,0.00871813,1720.7,1720.6,16.66876297]
[1693402500784,0.00871813,1720.7,1720.6,8.22696297]
[1693402500984,3.82404512,1720.7,1720.6,7.46401428]
[1693402501187,0.00871813,1720.7,1720.6,7.46401428]
[1693402501882,9.05804512,1720.7,1720.6,7.46401428]
[1693402502090,5.24271813,1720.7,1720.6,5.17685228]
[1693402502287,5.24271813,1720.7,1720.6,8.22696297]
[1693402502487,5.24271813,1720.7,1720.6,5.17685228]
[1693402502892,6.67629989,1720.7,1720.6,7.4641751]
[1693402503094,10.49162688,1720.7,1720.6,7.4641751]
[1693402503486,10.49162688,1720.7,1720.6,5.19423862]
[1693402503886,10.49162688,1720.7,1720.6,2.9069158]
[1693402504087,10.49162688,1720.7,1720.5,5.19423862]
[1693402504287,10.49162688,1720.7,1720.6,2.9069158]
[1693402504788,10.49162688,1720.7,1720.6,5.19423862]
[1693402506588,9.05804512,1720.7,1720.6,5.19423862]
[1693402506788,9.05804512,1720.7,1720.6,2.28732282]
[1693402506988,10.49162688,1720.7,1720.6,5.19423862]
[1693402507786,9.05804512,1720.7,1720.6,5.19423862]
[1693402507992,10.49162688,1720.7,1720.6,5.19423862]
[1693402509282,9.05804512,1720.7,1720.6,5.19423862]
[1693402509684,9.05804512,1720.7,1720.6,7.4641751]
[1693402509888,0.00871813,1720.7,1720.6,16.66876297]
[1693402511598,0.00871813,1720.7,1720.6,13.61865228]
[1693402512399,0.00871813,1720.7,1720.6,16.66783224]
[1693402512597,1.44229989,1720.7,1720.6,11.43383224]
[1693402512898,9.72811403,1720.7,1720.6,5.95609576]
[1693402513715,9.72811403,1720.7,1720.6,7.11789575]
[1693402516119,0.00871813,1720.7,1720.6,10.32569575]
[1693402516514,0.00871813,1720.7,1720.6,7.27651579]
[1693402517218,0.00871813,1720.7,1720.6,10.32218604]
[1693402518415,1.44229989,1720.7,1720.6,8.39931103]
[1693402519117,6.67629989,1720.7,1720.6,8.39931103]
[1693402519911,9.72811403,1720.7,1720.5,2.28459523]
[1693402520116,0.91484876,1720.6,1720.5,5.19132787]
[1693402520621,12.19541403,1720.7,1720.5,6.35312786]
[1693402520822,12.19541403,1720.7,1720.5,2.28459523]
[1693402521023,12.19541403,1720.7,1720.5,5.19134045]
[1693402521223,11.67668103,1720.7,1720.5,6.35314044]
[1693402521416,11.67668103,1720.7,1720.6,2.90666375]
[1693402521417,6.15756689,1720.7,1720.6,2.90666375]
[1693402522020,7.59114865,1720.7,1720.6,2.90666375]
[1693402522322,10.64296279,1720.7,1720.6,2.90666375]
[1693402522717,7.59114865,1720.7,1720.6,2.90666375]
[1693402523118,10.64296279,1720.7,1720.6,2.90666375]
[1693402526126,10.64296279,1720.7,1720.6,5.19125898]
[1693402526326,8.29453227,1720.7,1720.6,5.19125898]
[1693402526825,5.24271813,1720.7,1720.6,5.19125898]
[1693402527326,6.67629989,1720.7,1720.6,5.19125898]
[1693402529031,9.72811403,1720.7,1720.6,5.19125898]
[1693402530833,8.29453227,1720.7,1720.6,7.46119546]
[1693402531431,9.72811403,1720.7,1720.6,7.46119546]
[1693402532231,10.49162688,1720.7,1720.4,2.28459523]
[1693402532423,5.234,1720.5,1720.4,2.28459523]
[1693402532625,9.7168266,1720.5,1720.4,2.28459523]